[Event "Rapid Tournament (RAP)"]
[Site "Biel, Switzerland"]
[Date "2026.07.12"]
[Round "1.15"]
[White "Lu, Miaoyi"]
[Black "Arocha, Carlos"]
[Result "1-0"]
[TimeControl "15 + 5"]
[WhiteTitle "-"]
[BlackTitle "-"]
[WhiteFideId "8618020"]
[BlackFideId "1311590"]
[WhiteElo "2309"]
[BlackElo "1807"]

1. e4 {[%clk 00:15:09]} g6 {[%clk 00:15:03]} {[%emt 00:00:07]} 2. d4 {[%clk
00:15:12]} {[%emt 00:00:03]} Bg7 {[%clk 00:15:06]} {[%emt 00:00:01]} 3. Nf3
{[%clk 00:15:14]} {[%emt 00:00:04]} d6 {[%clk 00:15:09]} {[%emt 00:00:01]} 4.
Bd3 {[%clk 00:15:17]} {[%emt 00:00:03]} Nf6 {[%clk 00:15:10]} {[%emt 00:00:03]}
5. O-O {[%clk 00:15:20]} {[%emt 00:00:03]} O-O {[%clk 00:15:08]} {[%emt
00:00:05]} 6. Re1 {[%clk 00:15:23]} {[%emt 00:00:03]} Nbd7 {[%clk 00:14:30]}
{[%emt 00:00:43]} 7. e5 {[%clk 00:13:27]} {[%emt 00:02:01]} Nd5 {[%clk
00:14:34]} {[%emt 00:00:02]} 8. e6 {[%clk 00:11:52]} {[%emt 00:01:40]} fxe6
{[%clk 00:14:36]} {[%emt 00:00:02]} 9. Ng5 {[%clk 00:11:56]} {[%emt 00:00:02]}
N7f6 {[%clk 00:13:32]} {[%emt 00:01:08]} 10. Qe2 {[%clk 00:10:51]} {[%emt
00:01:10]} e5 {[%clk 00:12:38]} {[%emt 00:01:00]} 11. Bc4 {[%clk 00:09:41]}
{[%emt 00:01:15]} c6 {[%clk 00:12:08]} {[%emt 00:00:33]} 12. dxe5 {[%clk
00:09:36]} {[%emt 00:00:11]} dxe5 {[%clk 00:11:56]} {[%emt 00:00:17]} 13. Nc3
{[%clk 00:09:01]} {[%emt 00:00:40]} e6 {[%clk 00:10:31]} {[%emt 00:01:28]} 14.
Nce4 {[%emt 00:00:48]} Qe7 {[%clk 00:08:03]} {[%emt 00:02:33]} 15. Bb3 {[%clk
00:08:05]} {[%emt 00:00:21]} h6 {[%clk 00:07:04]} {[%emt 00:01:03]} 16. Nf3
{[%clk 00:05:48]} {[%emt 00:02:22]} b5 {[%clk 00:06:40]} {[%emt 00:00:29]} 17.
Nxe5 {[%clk 00:05:32]} {[%emt 00:00:21]} Kh7 {[%clk 00:06:18]} {[%emt
00:00:27]} 18. c3 {[%clk 00:03:57]} {[%emt 00:01:41]} Qc7 {[%clk 00:05:22]}
{[%emt 00:01:00]} 19. Nc5 {[%clk 00:03:19]} {[%emt 00:00:44]} Qd6 {[%clk
00:04:37]} {[%emt 00:00:49]} 20. Ncd3 {[%clk 00:03:02]} {[%emt 00:00:23]} Nd7
{[%clk 00:04:02]} {[%emt 00:00:39]} 21. Bc2 {[%clk 00:02:32]} {[%emt 00:00:35]}
Nxe5 {[%clk 00:03:44]} {[%emt 00:00:23]} 22. Nxe5 {[%clk 00:02:36]} {[%emt
00:00:02]} Bxe5 {[%clk 00:03:36]} {[%emt 00:00:13]} 23. Qxe5 {[%clk 00:02:39]}
{[%emt 00:00:02]} Qxe5 {[%clk 00:03:39]} {[%emt 00:00:02]} 24. Rxe5 {[%clk
00:02:43]} {[%emt 00:00:01]} Bd7 {[%clk 00:03:27]} {[%emt 00:00:17]} 25. Be3
{[%clk 00:01:59]} {[%emt 00:00:49]} a5 {[%clk 00:02:52]} {[%emt 00:00:40]} 26.
Rd1 {[%clk 00:01:36]} {[%emt 00:00:28]} Rf6 {[%clk 00:02:34]} {[%emt 00:00:23]}
27. h4 {[%clk 00:01:28]} {[%emt 00:00:12]} Kg7 {[%clk 00:01:59]} {[%emt
00:00:40]} 28. Bd4 {[%clk 00:01:17]} {[%emt 00:00:16]} Rf7 {[%clk 00:02:03]}
{[%emt 00:00:01]} 29. Rxd5+ {[%clk 00:01:20]} {[%emt 00:00:02]} Kg8 {[%clk
00:01:47]} {[%emt 00:00:22]} 30. Rd6 {[%clk 00:01:21]} {[%emt 00:00:04]} Rb8
{[%clk 00:01:28]} {[%emt 00:00:23]} 31. Bxg6 {[%clk 00:01:22]} {[%emt
00:00:04]} 1-0

[Event "Rapid Tournament (RAP)"]
[Site "Biel, Switzerland"]
[Date "2026.07.12"]
[Round "1.16"]
[White "Mueller, Ladina"]
[Black "Cherniaev, Alexander"]
[Result "0-1"]
[TimeControl "15 + 5"]
[WhiteTitle "-"]
[BlackTitle "-"]
[WhiteFideId "1351907"]
[BlackFideId "4117301"]
[WhiteElo "1807"]
[BlackElo "2299"]

1. c4 {[%clk 00:15:07]} {[%emt 00:00:03]} b6 {[%clk 00:15:04]} {[%emt
00:00:07]} 2. Nc3 {[%clk 00:15:10]} {[%emt 00:00:02]} Bb7 {[%clk 00:15:07]}
{[%emt 00:00:02]} 3. Nf3 {[%clk 00:15:12]} {[%emt 00:00:02]} e6 {[%clk
00:15:01]} {[%emt 00:00:12]} 4. g3 {[%clk 00:15:05]} {[%emt 00:00:12]} Bb4
{[%clk 00:15:02]} {[%emt 00:00:04]} 5. Qc2 {[%clk 00:14:33]} {[%emt 00:00:37]}
c5 {[%clk 00:14:32]} {[%emt 00:00:35]} 6. Bg2 {[%clk 00:13:54]} {[%emt
00:00:43]} Nc6 {[%clk 00:14:18]} {[%emt 00:00:20]} 7. e3 {[%clk 00:13:51]}
{[%emt 00:00:07]} Ne5 {[%clk 00:14:05]} {[%emt 00:00:19]} 8. Nxe5 {[%clk
00:12:44]} {[%emt 00:01:11]} Bxg2 {[%clk 00:14:07]} {[%emt 00:00:03]} 9. Rg1
{[%clk 00:12:47]} {[%emt 00:00:02]} Bb7 {[%clk 00:13:40]} {[%emt 00:00:32]} 10.
b3 {[%clk 00:12:25]} {[%emt 00:00:28]} d6 {[%clk 00:11:41]} {[%emt 00:02:04]}
11. Nd3 {[%clk 00:12:21]} {[%emt 00:00:09]} Bxc3 {[%clk 00:10:41]} {[%emt
00:01:05]} 12. Qxc3 {[%clk 00:12:13]} {[%emt 00:00:12]} Qf6 {[%clk 00:10:25]}
{[%emt 00:00:22]} 13. Bb2 {[%clk 00:11:53]} {[%emt 00:00:25]} Qxc3 {[%clk
00:10:27]} {[%emt 00:00:03]} 14. Bxc3 {[%clk 00:11:55]} {[%emt 00:00:02]} e5
{[%clk 00:10:19]} {[%emt 00:00:14]} 15. f4 {[%clk 00:11:27]} {[%emt 00:00:32]}
f6 {[%clk 00:10:21]} {[%emt 00:00:04]} 16. O-O-O {[%clk 00:11:20]} {[%emt
00:00:12]} h5 {[%clk 00:09:52]} {[%emt 00:00:34]} 17. Nf2 {[%clk 00:11:08]}
{[%emt 00:00:16]} Nh6 {[%clk 00:09:24]} {[%emt 00:00:33]} 18. d4 {[%clk
00:10:18]} {[%emt 00:00:56]} Bf3 {[%clk 00:08:52]} {[%emt 00:00:37]} 19. Rd2
{[%clk 00:10:03]} {[%emt 00:00:19]} e4 {[%clk 00:08:54]} {[%emt 00:00:03]} 20.
Re1 {[%clk 00:09:19]} {[%emt 00:00:48]} Nf5 {[%clk 00:08:14]} {[%emt 00:00:47]}
21. d5 {[%clk 00:08:37]} {[%emt 00:00:46]} Kf7 {[%clk 00:08:10]} {[%emt
00:00:09]} 22. a4 {[%clk 00:08:10]} {[%emt 00:00:32]} Rab8 {[%clk 00:08:11]}
{[%emt 00:00:05]} 23. Ra2 {[%clk 00:07:11]} {[%emt 00:01:04]} a6 {[%clk
00:08:14]} {[%emt 00:00:03]} 24. Nd1 {[%clk 00:06:07]} {[%emt 00:01:06]} h4
{[%clk 00:08:04]} {[%emt 00:00:17]} 25. gxh4 {[%clk 00:04:51]} {[%emt
00:01:21]} Rxh4 {[%clk 00:08:07]} {[%emt 00:00:02]} 26. Rf2 {[%clk 00:03:44]}
{[%emt 00:01:12]} Rbh8 {[%clk 00:08:01]} {[%emt 00:00:11]} 27. Rxf3 {[%clk
00:03:22]} {[%emt 00:00:26]} exf3 {[%clk 00:08:04]} {[%emt 00:00:02]} 28. Rf1
{[%clk 00:03:09]} {[%emt 00:00:18]} Rxh2 {[%clk 00:07:57]} {[%emt 00:00:13]} 29.
Rxf3 {[%clk 00:03:06]} {[%emt 00:00:07]} Re2 {[%clk 00:07:59]} {[%emt
00:00:03]} 30. Rf1 {[%clk 00:01:47]} {[%emt 00:01:24]} Rhh2 {[%clk 00:08:01]}
{[%emt 00:00:04]} 31. Ba1 {[%clk 00:01:29]} {[%emt 00:00:23]} Nxe3 {[%clk
00:08:00]} {[%emt 00:00:05]} 32. Nxe3 {[%clk 00:01:32]} {[%emt 00:00:03]} Rxe3
{[%clk 00:08:03]} {[%emt 00:00:02]} 0-1

[Event "Rapid Tournament (RAP)"]
[Site "Biel, Switzerland"]
[Date "2026.07.12"]
[Round "1.17"]
[White "Balabayeva, Xeniya"]
[Black "Alrefae, Ahmad"]
[Result "1-0"]
[TimeControl "15 + 5"]
[WhiteTitle "-"]
[BlackTitle "-"]
[WhiteFideId "13719688"]
[BlackFideId "10306510"]
[WhiteElo "2291"]
[BlackElo "1797"]

1. d4 {[%clk 00:15:09]} f5 {[%clk 00:15:09]} {[%emt 00:00:02]} 2. c4 {[%clk
00:15:05]} {[%emt 00:00:09]} e6 {[%clk 00:15:13]} {[%emt 00:00:01]} 3. Nc3
{[%clk 00:15:04]} {[%emt 00:00:06]} Nf6 {[%clk 00:15:17]} {[%emt 00:00:01]} 4.
g3 {[%clk 00:14:45]} {[%emt 00:00:23]} Be7 {[%clk 00:15:21]} {[%emt 00:00:01]}
5. Bg2 {[%clk 00:14:39]} {[%emt 00:00:11]} O-O {[%clk 00:15:24]} {[%emt
00:00:02]} 6. Nh3 {[%clk 00:14:30]} {[%emt 00:00:14]} d6 {[%clk 00:15:22]}
{[%emt 00:00:08]} 7. Nf4 {[%clk 00:13:34]} {[%emt 00:01:00]} c6 {[%clk
00:15:26]} {[%emt 00:00:02]} 8. Nd3 {[%clk 00:13:10]} {[%emt 00:00:29]} Qc7
{[%clk 00:15:29]} {[%emt 00:00:02]} 9. O-O {[%clk 00:11:56]} {[%emt 00:01:19]}
e5 {[%clk 00:15:32]} {[%emt 00:00:01]} 10. dxe5 {[%clk 00:11:58]} {[%emt
00:00:03]} dxe5 {[%clk 00:15:36]} {[%emt 00:00:02]} 11. e4 {[%clk 00:12:00]}
{[%emt 00:00:03]} a5 {[%clk 00:14:47]} {[%emt 00:00:54]} 12. Qe2 {[%clk
00:11:30]} {[%emt 00:00:34]} fxe4 {[%clk 00:12:22]} {[%emt 00:02:30]} 13. Nxe4
{[%clk 00:11:33]} {[%emt 00:00:02]} Bf5 {[%clk 00:12:08]} {[%emt 00:00:19]} 14.
Bd2 {[%clk 00:11:00]} {[%emt 00:00:38]} Nbd7 {[%clk 00:11:56]} {[%emt
00:00:17]} 15. Bc3 {[%clk 00:10:42]} {[%emt 00:00:23]} Rad8 {[%clk 00:10:41]}
{[%emt 00:01:21]} 16. Rad1 {[%clk 00:09:29]} {[%emt 00:01:18]} b5 {[%clk
00:09:04]} {[%emt 00:01:42]} 17. cxb5 {[%clk 00:09:08]} {[%emt 00:00:26]} cxb5
{[%clk 00:09:06]} {[%emt 00:00:02]} 18. Rc1 {[%clk 00:08:59]} {[%emt 00:00:15]}
Nxe4 {[%clk 00:07:51]} {[%emt 00:01:19]} 19. Bxe4 {[%clk 00:09:00]} {[%emt
00:00:04]} Qb6 {[%clk 00:06:55]} {[%emt 00:01:02]} 20. Nxe5 {[%clk 00:07:33]}
{[%emt 00:01:31]} Nxe5 {[%clk 00:06:06]} {[%emt 00:00:54]} 21. Bxe5 {[%clk
00:07:01]} {[%emt 00:00:37]} Bc5 {[%clk 00:06:00]} {[%emt 00:00:11]} 22. Bxf5
{[%clk 00:05:39]} {[%emt 00:01:27]} Rxf5 {[%clk 00:06:03]} {[%emt 00:00:02]} 23.
Bf4 {[%clk 00:05:33]} {[%emt 00:00:11]} Rdf8 {[%clk 00:04:17]} {[%emt
00:01:51]} 24. Rce1 {[%clk 00:04:34]} {[%emt 00:01:04]} g5 {[%clk 00:03:10]}
{[%emt 00:01:13]} 25. Be3 {[%clk 00:03:40]} {[%emt 00:00:58]} Bxe3 {[%clk
00:03:13]} {[%emt 00:00:02]} 26. Qxe3 {[%clk 00:03:42]} {[%emt 00:00:03]} Qxe3
{[%clk 00:03:16]} {[%emt 00:00:02]} 27. Rxe3 {[%clk 00:02:56]} {[%emt
00:00:51]} g4 {[%clk 00:03:18]} {[%emt 00:00:03]} 28. Kg2 {[%clk 00:02:50]}
{[%emt 00:00:11]} h5 {[%clk 00:03:22]} {[%emt 00:00:02]} 29. Re2 {[%clk
00:02:50]} {[%emt 00:00:05]} Kg7 {[%clk 00:03:18]} {[%emt 00:00:08]} 30. h3
{[%clk 00:02:52]} {[%emt 00:00:03]} Rh8 {[%clk 00:03:00]} {[%emt 00:00:23]} 31.
hxg4 {[%clk 00:02:50]} {[%emt 00:00:07]} hxg4 {[%clk 00:03:04]} {[%emt
00:00:01]} 32. Re4 {[%clk 00:02:53]} {[%emt 00:00:01]} Rg5 {[%clk 00:03:06]}
{[%emt 00:00:03]} 33. Rd1 {[%clk 00:02:33]} {[%emt 00:00:25]} Rc8 {[%clk
00:02:56]} {[%emt 00:00:15]} 34. Rd2 {[%clk 00:01:31]} {[%emt 00:01:08]} Kg6
{[%clk 00:02:42]} {[%emt 00:00:18]} 35. Rd6+ {[%clk 00:01:18]} {[%emt
00:00:18]} Kf7 {[%clk 00:02:05]} {[%emt 00:00:42]} 36. Rd2 {[%clk 00:01:13]}
{[%emt 00:00:10]} Kg6 {[%clk 00:02:02]} {[%emt 00:00:08]} 37. Rde2 {[%clk
00:01:14]} {[%emt 00:00:05]} Rc6 {[%clk 00:01:55]} {[%emt 00:00:12]} 38. Re6+
{[%clk 00:01:04]} {[%emt 00:00:14]} Rxe6 {[%clk 00:01:59]} {[%emt 00:00:01]} 39.
Rxe6+ {[%clk 00:01:08]} {[%emt 00:00:02]} Kf5 {[%clk 00:01:31]} {[%emt
00:00:33]} 40. Re3 {[%clk 00:01:03]} {[%emt 00:00:09]} Kf6 {[%clk 00:01:33]}
{[%emt 00:00:03]} 41. f3 {[%clk 00:00:52]} {[%emt 00:00:17]} Rc5 {[%clk
00:01:16]} {[%emt 00:00:22]} 42. Re2 {[%clk 00:00:56]} {[%emt 00:00:01]} gxf3+
{[%clk 00:01:19]} {[%emt 00:00:02]} 43. Kxf3 {[%clk 00:00:59]} {[%emt
00:00:02]} Kg5 {[%clk 00:01:19]} {[%emt 00:00:04]} 44. Rd2 {[%clk 00:00:49]}
{[%emt 00:00:16]} Kf5 {[%clk 00:01:16]} {[%emt 00:00:08]} 45. g4+ {[%clk
00:00:30]} {[%emt 00:00:24]} Kg5 {[%clk 00:01:18]} {[%emt 00:00:01]} 46. Rh2
{[%clk 00:00:33]} {[%emt 00:00:04]} Kf6 {[%clk 00:00:21]} {[%emt 00:01:02]} 47.
Rh5 {[%clk 00:00:26]} {[%emt 00:00:11]} Rc2 {[%clk 00:00:19]} {[%emt 00:00:06]}
48. Rxb5 {[%clk 00:00:29]} {[%emt 00:00:03]} a4 {[%clk 00:00:24]} {[%emt
00:00:01]} 49. a3 {[%clk 00:00:28]} {[%emt 00:00:06]} Rd2 {[%clk 00:00:21]}
{[%emt 00:00:08]} 50. Ke3 {[%clk 00:00:22]} {[%emt 00:00:11]} Rg2 {[%clk
00:00:24]} {[%emt 00:00:01]} 51. g5+ {[%clk 00:00:13]} {[%emt 00:00:15]} Kg6
{[%clk 00:00:24]} {[%emt 00:00:04]} 52. Kd3 {[%clk 00:00:16]} {[%emt 00:00:02]}
Rg4 {[%clk 00:00:18]} {[%emt 00:00:11]} 53. Kc3 {[%clk 00:00:20]} {[%emt
00:00:02]} Rh4 {[%clk 00:00:20]} {[%emt 00:00:02]} 54. Rb4 {[%clk 00:00:19]}
{[%emt 00:00:06]} Rh3+ {[%clk 00:00:24]} {[%emt 00:00:01]} 55. Kc4 {[%clk
00:00:11]} {[%emt 00:00:14]} Kxg5 {[%clk 00:00:25]} {[%emt 00:00:03]} 56. Rxa4
{[%clk 00:00:14]} {[%emt 00:00:02]} Kf6 {[%clk 00:00:27]} {[%emt 00:00:03]} 57.
Ra6+ {[%clk 00:00:11]} {[%emt 00:00:08]} Ke7 {[%clk 00:00:30]} {[%emt
00:00:03]} 58. b4 {[%clk 00:00:14]} {[%emt 00:00:02]} Kd7 {[%clk 00:00:33]}
{[%emt 00:00:02]} 59. Ra5 {[%clk 00:00:10]} {[%emt 00:00:09]} Kc6 {[%clk
00:00:35]} {[%emt 00:00:02]} 60. b5+ {[%clk 00:00:10]} {[%emt 00:00:06]} Kb7
{[%clk 00:00:37]} {[%emt 00:00:03]} 61. Ra6 {[%clk 00:00:13]} {[%emt 00:00:02]}
Rh4+ {[%clk 00:00:39]} {[%emt 00:00:03]} 62. Kc5 {[%clk 00:00:16]} {[%emt
00:00:02]} Rh5+ {[%clk 00:00:40]} {[%emt 00:00:04]} 63. Kb4 {[%clk 00:00:20]}
{[%emt 00:00:01]} Rf5 {[%clk 00:00:27]} {[%emt 00:00:17]} 64. Rg6 {[%clk
00:00:21]} {[%emt 00:00:04]} Rf4+ {[%clk 00:00:27]} {[%emt 00:00:06]} 65. Ka5
{[%clk 00:00:23]} {[%emt 00:00:02]} Rf5 {[%clk 00:00:31]} {[%emt 00:00:01]} 66.
Rg7+ {[%clk 00:00:26]} {[%emt 00:00:02]} 1-0

[Event "Rapid Tournament (RAP)"]
[Site "Biel, Switzerland"]
[Date "2026.07.12"]
[Round "1.19"]
[White "Shukhman, Anna"]
[Black "Paholok, Igor"]
[Result "1-0"]
[TimeControl "15 + 5"]
[WhiteTitle "-"]
[BlackTitle "-"]
[WhiteFideId "54180058"]
[BlackFideId "1338951"]
[WhiteElo "2272"]
[BlackElo "1784"]

1. e4 {[%clk 00:15:07]} {[%emt 00:00:01]} e6 {[%clk 00:15:09]} {[%emt
00:00:01]} 2. d4 {[%clk 00:15:11]} {[%emt 00:00:02]} d5 {[%clk 00:15:13]}
{[%emt 00:00:01]} 3. Nc3 {[%clk 00:15:14]} {[%emt 00:00:02]} Bb4 {[%clk
00:15:15]} {[%emt 00:00:02]} 4. e5 {[%clk 00:15:18]} {[%emt 00:00:02]} b6
{[%clk 00:15:13]} {[%emt 00:00:02]} 5. a3 {[%clk 00:14:09]} {[%emt 00:01:19]}
Bf8 {[%clk 00:15:16]} 6. f4 {[%clk 00:13:25]} {[%emt 00:00:49]} Ba6 {[%clk
00:15:14]} {[%emt 00:00:08]} 7. Bxa6 {[%clk 00:13:28]} {[%emt 00:00:02]} Nxa6
{[%clk 00:15:17]} {[%emt 00:00:02]} 8. Nf3 {[%clk 00:13:20]} {[%emt 00:00:12]}
c5 {[%clk 00:15:13]} {[%emt 00:00:10]} 9. f5 {[%clk 00:12:06]} {[%emt
00:01:19]} exf5 {[%clk 00:14:26]} {[%emt 00:00:51]} 10. Qd3 {[%clk 00:11:38]}
{[%emt 00:00:33]} Nc7 {[%clk 00:14:07]} {[%emt 00:00:25]} 11. Qxf5 {[%clk
00:11:29]} {[%emt 00:00:14]} Ne6 {[%clk 00:14:02]} {[%emt 00:00:09]} 12. O-O
{[%clk 00:10:57]} {[%emt 00:00:37]} Ne7 {[%clk 00:13:37]} {[%emt 00:00:30]} 13.
Qh5 {[%clk 00:08:36]} {[%emt 00:02:26]} Ng6 {[%clk 00:13:20]} {[%emt 00:00:22]}
14. Ng5 {[%clk 00:08:20]} {[%emt 00:00:22]} Nxg5 {[%clk 00:13:05]} {[%emt
00:00:20]} 15. Bxg5 {[%clk 00:08:23]} {[%emt 00:00:02]} Be7 {[%clk 00:13:08]}
{[%emt 00:00:02]} 16. Bxe7 {[%clk 00:08:24]} {[%emt 00:00:04]} Qxe7 {[%clk
00:13:08]} {[%emt 00:00:05]} 17. Nxd5 {[%clk 00:08:18]} {[%emt 00:00:12]} Qd7
{[%clk 00:13:00]} {[%emt 00:00:06]} 18. c4 {[%clk 00:06:41]} {[%emt 00:01:48]}
cxd4 {[%clk 00:12:56]} {[%emt 00:00:09]} 19. Rad1 {[%clk 00:06:29]} {[%emt
00:00:17]} O-O {[%clk 00:12:53]} {[%emt 00:00:07]} 20. Rxd4 {[%clk 00:06:32]}
{[%emt 00:00:03]} Qc6 {[%clk 00:12:15]} {[%emt 00:00:41]} 21. Kh1 {[%clk
00:02:58]} {[%emt 00:03:41]} Qc5 {[%clk 00:12:04]} {[%emt 00:00:16]} 22. Re4
{[%clk 00:02:56]} {[%emt 00:00:07]} b5 {[%clk 00:11:34]} {[%emt 00:00:35]} 23.
b3 {[%clk 00:02:42]} {[%emt 00:00:19]} bxc4 {[%clk 00:11:28]} {[%emt 00:00:11]}
24. bxc4 {[%clk 00:02:45]} {[%emt 00:00:02]} Qxa3 {[%clk 00:11:18]} {[%emt
00:00:14]} 25. Re3 {[%clk 00:02:25]} {[%emt 00:00:25]} Qc5 {[%clk 00:10:38]}
{[%emt 00:00:44]} 26. Rh3 {[%clk 00:02:29]} {[%emt 00:00:03]} h6 {[%clk
00:10:29]} {[%emt 00:00:14]} 27. Nf6+ {[%clk 00:02:06]} {[%emt 00:00:28]} gxf6
{[%clk 00:08:00]} {[%emt 00:02:34]} 28. Qxh6 {[%clk 00:02:09]} {[%emt
00:00:02]} Rfb8 {[%clk 00:07:46]} {[%emt 00:00:18]} 29. exf6 {[%clk 00:02:12]}
{[%emt 00:00:02]} Qxc4 {[%clk 00:06:41]} {[%emt 00:01:10]} 30. Qg7# {[%clk
00:02:14]} {[%emt 00:00:03]} 1-0

[Event "Rapid Tournament (RAP)"]
[Site "Biel, Switzerland"]
[Date "2026.07.12"]
[Round "1.20"]
[White "Grimaldi, Francois-Xavier"]
[Black "Dong, Hongfu"]
[Result "0-1"]
[TimeControl "15 + 5"]
[WhiteTitle "-"]
[BlackTitle "-"]
[WhiteFideId "1367706"]
[BlackFideId "8626960"]
[WhiteElo "1783"]
[BlackElo "2271"]

1. e4 {[%clk 00:15:08]} {[%emt 00:00:01]} c5 {[%clk 00:15:03]} {[%emt
00:00:07]} 2. Nf3 {[%clk 00:15:11]} {[%emt 00:00:02]} d6 {[%clk 00:15:07]}
{[%emt 00:00:01]} 3. Bb5+ {[%clk 00:15:15]} {[%emt 00:00:01]} Bd7 {[%clk
00:15:08]} {[%emt 00:00:04]} 4. Bxd7+ {[%clk 00:15:18]} {[%emt 00:00:02]} Qxd7
{[%clk 00:15:12]} {[%emt 00:00:02]} 5. O-O {[%clk 00:15:14]} {[%emt 00:00:08]}
Nf6 {[%clk 00:15:08]} {[%emt 00:00:08]} 6. Qe2 {[%clk 00:15:10]} {[%emt
00:00:09]} Nc6 {[%clk 00:15:04]} {[%emt 00:00:09]} 7. c3 {[%clk 00:15:07]}
{[%emt 00:00:08]} e6 {[%clk 00:15:07]} {[%emt 00:00:02]} 8. d4 {[%clk
00:15:00]} {[%emt 00:00:12]} d5 {[%clk 00:14:55]} {[%emt 00:00:17]} 9. exd5
{[%clk 00:12:52]} {[%emt 00:02:13]} Qxd5 {[%clk 00:13:31]} {[%emt 00:01:29]} 10.
Rd1 {[%clk 00:10:22]} {[%emt 00:02:36]} cxd4 {[%clk 00:12:18]} {[%emt
00:01:17]} 11. cxd4 {[%clk 00:09:55]} {[%emt 00:00:33]} Be7 {[%clk 00:07:03]}
{[%emt 00:05:19]} 12. Nc3 {[%clk 00:09:23]} {[%emt 00:00:37]} Qh5 {[%clk
00:07:06]} {[%emt 00:00:02]} 13. d5 {[%clk 00:04:13]} {[%emt 00:05:16]} exd5
{[%clk 00:06:43]} {[%emt 00:00:27]} 14. Qb5 {[%clk 00:03:59]} {[%emt 00:00:19]}
O-O {[%clk 00:06:43]} {[%emt 00:00:05]} 15. Nxd5 {[%clk 00:03:53]} {[%emt
00:00:12]} Rad8 {[%clk 00:03:34]} {[%emt 00:03:13]} 16. Nxe7+ {[%clk 00:02:43]}
{[%emt 00:01:14]} Nxe7 {[%clk 00:03:38]} {[%emt 00:00:01]} 17. Qe2 {[%clk
00:02:47]} {[%emt 00:00:02]} Ned5 {[%clk 00:02:45]} {[%emt 00:00:59]} 18. Bg5
{[%clk 00:02:01]} {[%emt 00:00:51]} h6 {[%clk 00:02:49]} 19. Bxf6 {[%clk
00:02:01]} {[%emt 00:00:04]} Nxf6 {[%clk 00:02:53]} {[%emt 00:00:02]} 20. Rxd8
{[%clk 00:01:48]} {[%emt 00:00:17]} Rxd8 {[%clk 00:02:57]} 21. Rd1 {[%clk
00:01:22]} {[%emt 00:00:31]} Re8 {[%clk 00:03:01]} 22. Qd2 {[%clk 00:01:11]}
{[%emt 00:00:17]} Qb5 {[%clk 00:02:59]} {[%emt 00:00:06]} 23. Qc3 {[%clk
00:00:30]} {[%emt 00:00:47]} Ne4 {[%clk 00:02:08]} {[%emt 00:00:57]} 24. Qd4
{[%clk 00:00:21]} {[%emt 00:00:13]} Nf6 {[%clk 00:01:54]} {[%emt 00:00:19]} 25.
Qc3 {[%clk 00:00:24]} {[%emt 00:00:02]} Qb6 {[%clk 00:01:46]} {[%emt 00:00:12]}
26. Qd4 {[%clk 00:00:06]} {[%emt 00:00:24]} Qb5 {[%clk 00:00:59]} {[%emt
00:00:51]} 27. Qc3 {[%clk 00:00:09]} {[%emt 00:00:03]} Qa4 {[%clk 00:01:04]} 28.
b3 {[%clk 00:00:10]} {[%emt 00:00:04]} Qxa2 {[%clk 00:01:05]} {[%emt 00:00:03]}
29. h3 {[%clk 00:00:13]} {[%emt 00:00:02]} Qxf2+ {[%clk 00:01:00]} {[%emt
00:00:09]} 30. Kxf2 {[%clk 00:00:16]} {[%emt 00:00:03]} Ne4+ {[%clk 00:01:05]}
31. Kg1 {[%clk 00:00:17]} {[%emt 00:00:04]} Nxc3 {[%clk 00:01:08]} {[%emt
00:00:01]} 32. Rd7 {[%clk 00:00:19]} {[%emt 00:00:03]} Rb8 {[%clk 00:01:10]}
{[%emt 00:00:03]} 33. Ne5 {[%clk 00:00:22]} {[%emt 00:00:02]} f6 {[%clk
00:01:15]} {[%emt 00:00:01]} 34. Nc4 {[%clk 00:00:24]} {[%emt 00:00:03]} Ne4
{[%clk 00:00:45]} {[%emt 00:00:34]} 35. Re7 {[%clk 00:00:21]} {[%emt 00:00:08]}
f5 {[%clk 00:00:49]} 36. g4 {[%clk 00:00:11]} {[%emt 00:00:16]} Kf8 {[%clk
00:00:19]} {[%emt 00:00:35]} 37. Rc7 {[%clk 00:00:07]} {[%emt 00:00:09]} fxg4
{[%clk 00:00:21]} {[%emt 00:00:03]} 38. hxg4 {[%clk 00:00:10]} {[%emt
00:00:02]} Nf6 {[%clk 00:00:21]} {[%emt 00:00:06]} 39. Ne5 {[%clk 00:00:09]}
{[%emt 00:00:05]} Kg8 {[%clk 00:00:25]} 40. Kg2 {[%clk 00:00:09]} {[%emt
00:00:05]} Re8 {[%clk 00:00:26]} {[%emt 00:00:04]} 41. Nd7 {[%clk 00:00:09]}
{[%emt 00:00:05]} Nxg4 {[%clk 00:00:14]} {[%emt 00:00:17]} 42. Rxb7 {[%clk
00:00:09]} {[%emt 00:00:04]} a5 {[%clk 00:00:15]} {[%emt 00:00:05]} 43. Ra7
{[%clk 00:00:12]} {[%emt 00:00:02]} Re3 {[%clk 00:00:16]} {[%emt 00:00:04]} 44.
Rxa5 {[%clk 00:00:13]} {[%emt 00:00:05]} Rxb3 {[%clk 00:00:17]} {[%emt
00:00:03]} 45. Ne5 {[%clk 00:00:15]} {[%emt 00:00:03]} Nxe5 {[%clk 00:00:20]}
{[%emt 00:00:02]} 46. Rxe5 {[%clk 00:00:19]} {[%emt 00:00:01]} Kf7 {[%clk
00:00:24]} 47. Rc5 {[%clk 00:00:21]} {[%emt 00:00:04]} g5 {[%clk 00:00:28]} 48.
Rc6 {[%clk 00:00:22]} {[%emt 00:00:04]} Kg7 {[%clk 00:00:33]} 49. Ra6 {[%clk
00:00:23]} {[%emt 00:00:04]} h5 {[%clk 00:00:37]} {[%emt 00:00:01]} 50. Rc6
{[%clk 00:00:25]} {[%emt 00:00:02]} h4 {[%clk 00:00:40]} {[%emt 00:00:02]} 51.
Rd6 {[%clk 00:00:15]} {[%emt 00:00:15]} Re3 {[%clk 00:00:44]} {[%emt 00:00:01]}
52. Kf2 {[%clk 00:00:14]} {[%emt 00:00:07]} Ra3 {[%clk 00:00:45]} {[%emt
00:00:04]} 53. Rc6 {[%clk 00:00:13]} {[%emt 00:00:06]} Kf7 {[%clk 00:00:48]}
{[%emt 00:00:01]} 54. Rd6 {[%clk 00:00:15]} {[%emt 00:00:03]} Ra4 {[%clk
00:00:48]} {[%emt 00:00:06]} 55. Rb6 {[%clk 00:00:13]} {[%emt 00:00:07]} Rf4+
{[%clk 00:00:52]} {[%emt 00:00:01]} 56. Kg2 {[%clk 00:00:11]} {[%emt 00:00:06]}
Rf6 {[%clk 00:00:56]} 57. Rb5 {[%clk 00:00:11]} {[%emt 00:00:06]} Kg6 {[%clk
00:01:00]} 58. Rc5 {[%clk 00:00:08]} {[%emt 00:00:08]} Kh5 {[%clk 00:01:03]} 59.
Rb5 {[%clk 00:00:12]} {[%emt 00:00:03]} Kg4 {[%clk 00:01:07]} 60. Rb4+ {[%clk
00:00:15]} {[%emt 00:00:01]} Rf4 {[%clk 00:01:11]} {[%emt 00:00:01]} 61. Rb3
{[%clk 00:00:09]} {[%emt 00:00:12]} Ra4 {[%clk 00:01:11]} {[%emt 00:00:04]} 0-1